[Event "Titled Tuesday Blitz September 20 Late 2022"]
[White "Ceres, Dragos"]
[Black "Hansen, Eric"]
[WhiteFideId "13905864"]
[BlackFideId "2606771"]
[WhiteElo "2150"]
[BlackElo "2568"]
[Result "1-0"]
[Round "09"]
[TimeControl "180+1"]
[Date "2022.09.20"]
[WhiteClock "0:00:26"]
[BlackClock "0:00:02"]

1. e4 {[%clk 0:03:00]}  e5 {[%clk 0:02:07]} 2. Nf3 {[%clk 0:03:00]}  Nc6 {[%clk 0:02:07]} 3. Nc3 {[%clk 0:02:59]}  Nf6 {[%clk 0:02:03]} 4. Bb5 {[%clk 0:02:59]}  Nd4 {[%clk 0:01:56]} 5. Bc4 {[%clk 0:02:58]}  Nxf3+ {[%clk 0:01:48]} 6. Qxf3 {[%clk 0:02:57]}  c6 {[%clk 0:01:46]} 7. d3 {[%clk 0:02:56]}  d6 {[%clk 0:01:43]} 8. O-O {[%clk 0:02:52]}  Be7 {[%clk 0:01:42]} 9. Qg3 {[%clk 0:02:39]}  O-O {[%clk 0:01:41]} 10. Bh6 {[%clk 0:02:29]}  Ng4 {[%clk 0:01:41]} 11. Bd2 {[%clk 0:02:22]}  Bh4 {[%clk 0:01:27]} 12. Qf3 {[%clk 0:02:16]}  Bg5 {[%clk 0:01:11]} 13. Qe2 {[%clk 0:02:10]}  b5 {[%clk 0:00:42]} 14. Bb3 {[%clk 0:02:10]}  a5 {[%clk 0:00:43]} 15. a4 {[%clk 0:02:09]}  b4 {[%clk 0:00:43]} 16. Nd1 {[%clk 0:02:09]}  Bxd2 {[%clk 0:00:43]} 17. Qxd2 {[%clk 0:02:10]}  Be6 {[%clk 0:00:40]} 18. Bc4 {[%clk 0:01:51]}  d5 {[%clk 0:00:38]} 19. exd5 {[%clk 0:01:48]}  cxd5 {[%clk 0:00:39]} 20. Bb5 {[%clk 0:01:48]}  Rc8 {[%clk 0:00:40]} 21. c3 {[%clk 0:01:42]}  bxc3 {[%clk 0:00:40]} 22. Nxc3 {[%clk 0:01:42]}  Qd6 {[%clk 0:00:39]} 23. h3 {[%clk 0:01:32]}  Nf6 {[%clk 0:00:40]} 24. Rae1 {[%clk 0:01:25]}  d4 {[%clk 0:00:30]} 25. Ne4 {[%clk 0:01:24]}  Nxe4 {[%clk 0:00:31]} 26. Rxe4 {[%clk 0:01:24]}  Bd5 {[%clk 0:00:31]} 27. Re2 {[%clk 0:01:20]}  Rc5 {[%clk 0:00:12]} 28. Qxa5 {[%clk 0:01:17]}  Qg6 {[%clk 0:00:11]} 29. f3 {[%clk 0:01:13]}  Qxd3 {[%clk 0:00:09]} 30. Bxd3 {[%clk 0:01:09]}  Rxa5 {[%clk 0:00:09]} 31. Rxe5 {[%clk 0:01:10]}  Rd8 {[%clk 0:00:07]} 32. Bb5 {[%clk 0:01:10]}  Be6 {[%clk 0:00:06]} 33. Rd1 {[%clk 0:01:09]}  Kf8 {[%clk 0:00:06]} 34. Re4 {[%clk 0:01:07]}  d3 {[%clk 0:00:06]} 35. Rxd3 {[%clk 0:00:56]}  Rxd3 {[%clk 0:00:06]} 36. Bxd3 {[%clk 0:00:57]}  Bf5 {[%clk 0:00:06]} 37. Rd4 {[%clk 0:00:56]}  Bxd3 {[%clk 0:00:07]} 38. Rxd3 {[%clk 0:00:56]}  Rxa4 {[%clk 0:00:07]} 39. Kf2 {[%clk 0:00:51]}  Ra2 {[%clk 0:00:07]} 40. Rb3 {[%clk 0:00:51]}  Ra1 {[%clk 0:00:08]} 41. g4 {[%clk 0:00:51]}  Rc1 {[%clk 0:00:07]} 42. Rb7 {[%clk 0:00:50]}  g5 {[%clk 0:00:05]} 43. Rb5 {[%clk 0:00:47]}  h6 {[%clk 0:00:05]} 44. h4 {[%clk 0:00:47]}  gxh4 {[%clk 0:00:02]} 45. Kg2 {[%clk 0:00:48]}  Kg7 {[%clk 0:00:01]} 46. Kh3 {[%clk 0:00:43]}  Rh1+ {[%clk 0:00:01]} 47. Kg2 {[%clk 0:00:44]}  Rb1 {[%clk 0:00:01]} 48. Rb6 {[%clk 0:00:39]}  f6 {[%clk 0:00:01]} 49. Kh3 {[%clk 0:00:33]}  Kg6 {[%clk 0:00:01]} 50. Kxh4 {[%clk 0:00:33]}  Rh1+ {[%clk 0:00:01]} 51. Kg3 {[%clk 0:00:33]}  Rb1 {[%clk 0:00:01]} 52. Kf4 {[%clk 0:00:33]}  Rc1 {[%clk 0:00:01]} 53. b3 {[%clk 0:00:33]}  Rb1 {[%clk 0:00:02]} 54. Rb8 {[%clk 0:00:32]}  Rb2 {[%clk 0:00:02]} 55. b4 {[%clk 0:00:31]}  Rb3 {[%clk 0:00:02]} 56. b5 {[%clk 0:00:31]}  Rb4+ {[%clk 0:00:01]} 57. Kg3 {[%clk 0:00:31]}  h5 {[%clk 0:00:02]} 58. gxh5+ {[%clk 0:00:30]}  Kxh5 {[%clk 0:00:02]} 59. b6 {[%clk 0:00:30]}  Kg6 {[%clk 0:00:03]} 60. Kf2 {[%clk 0:00:30]}  Rb3 {[%clk 0:00:02]} 61. Kg3 {[%clk 0:00:27]}  Rb4 {[%clk 0:00:01]} 62. b7 {[%clk 0:00:26]}  Kg7 {[%clk 0:00:02]} 63. f4 {[%clk 0:00:26]}  f5 {[%clk 0:00:02]} 64. Kf3 {[%clk 0:00:25]}  Rb3+ {[%clk 0:00:02]} 65. Ke2 {[%clk 0:00:25]}  Kh7 {[%clk 0:00:02]} 66. Kd2 {[%clk 0:00:26]}  Kg7 {[%clk 0:00:03]} 67. Kc2 {[%clk 0:00:26]}  Rb4 {[%clk 0:00:03]} 68. Kc3 {[%clk 0:00:26]}  Rb1 {[%clk 0:00:03]} 69. Kd4 {[%clk 0:00:26]}  Kh7 {[%clk 0:00:04]} 70. Ke5 {[%clk 0:00:26]}  Rb5+ {[%clk 0:00:04]} 71. Kf6 {[%clk 0:00:27]}  Rb6+ {[%clk 0:00:01]} 72. Kxf5 {[%clk 0:00:27]}  Kg7 {[%clk 0:00:02]} 73. Kg4 {[%clk 0:00:27]}  Rb1 {[%clk 0:00:02]} 74. f5 {[%clk 0:00:27]}  Rb4+ {[%clk 0:00:01]} 75. Kf3 {[%clk 0:00:27]}  Rb3+ {[%clk 0:00:02]} 76. Ke2 {[%clk 0:00:27]}  Rb5 {[%clk 0:00:02]} 77. f6+ {[%clk 0:00:26]}  Kh7 {[%clk 0:00:02]} 78. f7 {[%clk 0:00:26]} 1-0


[Site "https://www.chess.com"]

[Event "Titled Tuesday Blitz September 20 Late 2022"]
[White "Graif, William"]
[Black "Melikyan, Gnel"]
[WhiteFideId "2609835"]
[BlackFideId "54109990"]
[WhiteElo "1942"]
[BlackElo "1772"]
[Result "0-1"]
[Round "09"]
[TimeControl "180+1"]
[Date "2022.09.20"]
[WhiteClock "0:00:01"]
[BlackClock "0:01:41"]

1. d4 {[%clk 0:03:00]}  e6 {[%clk 0:02:56]} 2. e4 {[%clk 0:02:58]}  d5 {[%clk 0:02:55]} 3. Be3 {[%clk 0:02:54]}  dxe4 {[%clk 0:02:55]} 4. f3 {[%clk 0:02:54]}  Nf6 {[%clk 0:02:54]} 5. fxe4 {[%clk 0:02:46]}  Nxe4 {[%clk 0:02:53]} 6. Nf3 {[%clk 0:02:46]}  Be7 {[%clk 0:02:53]} 7. Bd3 {[%clk 0:02:45]}  Nf6 {[%clk 0:02:53]} 8. O-O {[%clk 0:02:43]}  c6 {[%clk 0:02:52]} 9. Qe1 {[%clk 0:02:15]}  h6 {[%clk 0:02:49]} 10. Qg3 {[%clk 0:02:04]}  Nd5 {[%clk 0:02:38]} 11. Ne5 {[%clk 0:01:25]}  Bf6 {[%clk 0:02:26]} 12. Bg6 {[%clk 0:01:02]}  O-O {[%clk 0:02:21]} 13. Bd3 {[%clk 0:00:14]}  Nxe3 {[%clk 0:02:20]} 14. Qxe3 {[%clk 0:00:12]}  c5 {[%clk 0:02:17]} 15. c3 {[%clk 0:00:08]}  cxd4 {[%clk 0:02:14]} 16. cxd4 {[%clk 0:00:09]}  Nc6 {[%clk 0:02:15]} 17. Nxc6 {[%clk 0:00:04]}  bxc6 {[%clk 0:02:15]} 18. Kh1 {[%clk 0:00:03]}  Qxd4 {[%clk 0:02:13]} 19. Qe2 {[%clk 0:00:01]}  Qxb2 {[%clk 0:02:13]} 20. Nd2 {[%clk 0:00:01]}  Rd8 {[%clk 0:02:04]} 21. Qe4 {[%clk 0:00:01]}  Qxd2 {[%clk 0:01:55]} 22. Rad1 {[%clk 0:00:01]}  Qg5 {[%clk 0:01:41]} 23. Qh7+ {[%clk 0:00:01]}  Kf8 {[%clk 0:01:41]} 0-1


[Site "https://www.chess.com"]

[Event "Titled Tuesday Blitz September 20 Late 2022"]
[White "Gurevich, Dmitry"]
[Black "Nasuta, Grzegorz"]
[WhiteFideId "2000407"]
[BlackFideId "1141686"]
[WhiteElo "2506"]
[BlackElo "2354"]
[Result "0-1"]
[Round "09"]
[TimeControl "180+1"]
[Date "2022.09.20"]
[WhiteClock "0:00:11"]
[BlackClock "0:01:14"]

1. d4 {[%clk 0:03:00]}  d5 {[%clk 0:02:59]} 2. c4 {[%clk 0:03:01]}  e6 {[%clk 0:03:00]} 3. Nc3 {[%clk 0:03:00]}  c6 {[%clk 0:03:00]} 4. e4 {[%clk 0:02:59]}  dxe4 {[%clk 0:03:00]} 5. Nxe4 {[%clk 0:02:59]}  Bb4+ {[%clk 0:03:01]} 6. Nc3 {[%clk 0:02:59]}  c5 {[%clk 0:03:01]} 7. Nf3 {[%clk 0:02:53]}  Nf6 {[%clk 0:02:59]} 8. Be2 {[%clk 0:02:49]}  Nc6 {[%clk 0:02:57]} 9. Be3 {[%clk 0:02:44]}  Ng4 {[%clk 0:02:58]} 10. O-O {[%clk 0:02:39]}  Nxe3 {[%clk 0:02:56]} 11. fxe3 {[%clk 0:02:39]}  O-O {[%clk 0:02:51]} 12. a3 {[%clk 0:02:35]}  Ba5 {[%clk 0:02:44]} 13. dxc5 {[%clk 0:02:31]}  Bxc3 {[%clk 0:02:44]} 14. bxc3 {[%clk 0:02:30]}  Qa5 {[%clk 0:02:44]} 15. Qc2 {[%clk 0:02:13]}  Qxc5 {[%clk 0:02:43]} 16. Nd4 {[%clk 0:02:11]}  Ne5 {[%clk 0:02:43]} 17. Qb3 {[%clk 0:02:09]}  b6 {[%clk 0:02:42]} 18. Qb4 {[%clk 0:02:07]}  Ba6 {[%clk 0:02:38]} 19. Qxc5 {[%clk 0:02:02]}  bxc5 {[%clk 0:02:39]} 20. Nb5 {[%clk 0:02:02]}  Bb7 {[%clk 0:02:24]} 21. a4 {[%clk 0:02:00]}  a6 {[%clk 0:02:23]} 22. Nd6 {[%clk 0:01:58]}  Bc6 {[%clk 0:02:23]} 23. a5 {[%clk 0:01:56]}  Rfd8 {[%clk 0:02:21]} 24. Rfd1 {[%clk 0:01:55]}  Rd7 {[%clk 0:02:21]} 25. Nb5 {[%clk 0:01:16]}  Rxd1+ {[%clk 0:01:47]} 26. Rxd1 {[%clk 0:01:13]}  axb5 {[%clk 0:01:46]} 27. cxb5 {[%clk 0:01:13]}  Bd5 {[%clk 0:01:45]} 28. a6 {[%clk 0:01:08]}  c4 {[%clk 0:01:20]} 29. e4 {[%clk 0:00:51]}  Bxe4 {[%clk 0:01:20]} 30. b6 {[%clk 0:00:50]}  Kf8 {[%clk 0:01:20]} 31. b7 {[%clk 0:00:41]}  Bxb7 {[%clk 0:01:18]} 32. axb7 {[%clk 0:00:40]}  Rb8 {[%clk 0:01:19]} 33. Rb1 {[%clk 0:00:38]}  Ke7 {[%clk 0:01:18]} 34. Rb5 {[%clk 0:00:33]}  Kd6 {[%clk 0:01:18]} 35. Kf2 {[%clk 0:00:26]}  f6 {[%clk 0:01:15]} 36. Ke3 {[%clk 0:00:25]}  Kc6 {[%clk 0:01:15]} 37. Rb4 {[%clk 0:00:14]}  Rxb7 {[%clk 0:01:14]} 38. Rb5 {[%clk 0:00:11]}  Rxb5 {[%clk 0:01:14]} 0-1


[Site "https://www.chess.com"]

[Event "Titled Tuesday Blitz September 20 Late 2022"]
[White "Iliaguev, Nisim"]
[Black "Bayo Milagro, Alvaro"]
[WhiteFideId "2817276"]
[BlackFideId "22275240"]
[WhiteElo "2107"]
[BlackElo "2270"]
[Result "1-0"]
[Round "09"]
[TimeControl "180+1"]
[Date "2022.09.20"]
[WhiteClock "0:00:41"]
[BlackClock "0:00:05"]

1. c4 {[%clk 0:03:00]}  Nf6 {[%clk 0:02:59]} 2. g3 {[%clk 0:02:59]}  e5 {[%clk 0:02:57]} 3. Bg2 {[%clk 0:02:59]}  Bc5 {[%clk 0:02:57]} 4. Nc3 {[%clk 0:03:00]}  d6 {[%clk 0:02:57]} 5. e3 {[%clk 0:03:00]}  a6 {[%clk 0:02:57]} 6. Nge2 {[%clk 0:03:01]}  Ba7 {[%clk 0:02:57]} 7. O-O {[%clk 0:03:01]}  O-O {[%clk 0:02:57]} 8. d4 {[%clk 0:03:01]}  Nc6 {[%clk 0:02:52]} 9. h3 {[%clk 0:03:00]}  Bf5 {[%clk 0:02:50]} 10. b3 {[%clk 0:02:57]}  exd4 {[%clk 0:02:45]} 11. exd4 {[%clk 0:02:58]}  Rb8 {[%clk 0:02:44]} 12. Be3 {[%clk 0:02:57]}  Qd7 {[%clk 0:02:42]} 13. Kh2 {[%clk 0:02:58]}  Rfe8 {[%clk 0:02:42]} 14. Qd2 {[%clk 0:02:58]}  Ne4 {[%clk 0:02:38]} 15. Nxe4 {[%clk 0:02:58]}  Bxe4 {[%clk 0:02:39]} 16. Rae1 {[%clk 0:02:54]}  Bxg2 {[%clk 0:02:39]} 17. Kxg2 {[%clk 0:02:55]}  Ne7 {[%clk 0:02:38]} 18. Nc3 {[%clk 0:02:53]}  Nf5 {[%clk 0:02:36]} 19. Qd3 {[%clk 0:02:46]}  Nxe3+ {[%clk 0:02:33]} 20. fxe3 {[%clk 0:02:42]}  c6 {[%clk 0:02:33]} 21. Rf3 {[%clk 0:02:42]}  Re7 {[%clk 0:02:32]} 22. Ref1 {[%clk 0:02:41]}  Rbe8 {[%clk 0:02:32]} 23. e4 {[%clk 0:02:41]}  c5 {[%clk 0:02:13]} 24. d5 {[%clk 0:02:39]}  Bb6 {[%clk 0:02:12]} 25. Rf5 {[%clk 0:02:37]}  Bd8 {[%clk 0:02:08]} 26. h4 {[%clk 0:02:36]}  Rf8 {[%clk 0:02:07]} 27. R5f2 {[%clk 0:02:33]}  Ree8 {[%clk 0:02:04]} 28. Nd1 {[%clk 0:02:24]}  b5 {[%clk 0:01:52]} 29. Ne3 {[%clk 0:02:24]}  g6 {[%clk 0:01:49]} 30. Rf4 {[%clk 0:02:15]}  h5 {[%clk 0:01:34]} 31. Nd1 {[%clk 0:01:49]}  Re5 {[%clk 0:01:31]} 32. Qf3 {[%clk 0:01:41]}  bxc4 {[%clk 0:01:25]} 33. bxc4 {[%clk 0:01:42]}  Ba5 {[%clk 0:00:56]} 34. Nf2 {[%clk 0:01:40]}  Bd2 {[%clk 0:00:54]} 35. Rf6 {[%clk 0:01:34]}  Bh6 {[%clk 0:00:52]} 36. Nd3 {[%clk 0:01:31]}  Re7 {[%clk 0:00:46]} 37. e5 {[%clk 0:01:30]}  dxe5 {[%clk 0:00:44]} 38. Nxc5 {[%clk 0:01:30]}  Qa7 {[%clk 0:00:29]} 39. Ne4 {[%clk 0:01:27]}  Bg7 {[%clk 0:00:29]} 40. c5 {[%clk 0:01:22]}  Qb7 {[%clk 0:00:21]} 41. c6 {[%clk 0:01:16]}  Qb4 {[%clk 0:00:17]} 42. d6 {[%clk 0:01:13]}  Ra7 {[%clk 0:00:17]} 43. d7 {[%clk 0:01:10]}  Qe7 {[%clk 0:00:16]} 44. Rd1 {[%clk 0:00:58]}  Raa8 {[%clk 0:00:12]} 45. c7 {[%clk 0:00:56]}  Bxf6 {[%clk 0:00:13]} 46. Nxf6+ {[%clk 0:00:45]}  Kg7 {[%clk 0:00:12]} 47. Qxa8 {[%clk 0:00:40]}  Rxa8 {[%clk 0:00:07]} 48. d8=Q {[%clk 0:00:40]}  Qxf6 {[%clk 0:00:05]} 49. Qxf6+ {[%clk 0:00:40]}  Kxf6 {[%clk 0:00:05]} 50. Rd8 {[%clk 0:00:41]} 1-0


[Site "https://www.chess.com"]

[Event "Titled Tuesday Blitz September 20 Late 2022"]
[White "Janaszak, Dawid"]
[Black "Dimitrov, Atanas"]
[WhiteFideId "1119206"]
[BlackFideId "2901315"]
[WhiteElo "2165"]
[BlackElo "2664"]
[Result "1-0"]
[Round "09"]
[TimeControl "180+1"]
[Date "2022.09.20"]
[WhiteClock "0:01:45"]
[BlackClock "0:00:55"]

1. d4 {[%clk 0:03:00]}  Nf6 {[%clk 0:03:00]} 2. Nf3 {[%clk 0:03:00]}  g6 {[%clk 0:02:57]} 3. Bf4 {[%clk 0:02:59]}  Bg7 {[%clk 0:02:58]} 4. c3 {[%clk 0:02:59]}  O-O {[%clk 0:02:58]} 5. Nbd2 {[%clk 0:02:59]}  d5 {[%clk 0:02:56]} 6. h3 {[%clk 0:02:55]}  c5 {[%clk 0:02:53]} 7. e3 {[%clk 0:02:55]}  Nc6 {[%clk 0:02:52]} 8. Be2 {[%clk 0:02:50]}  b6 {[%clk 0:02:51]} 9. O-O {[%clk 0:02:50]}  Bb7 {[%clk 0:02:51]} 10. Qa4 {[%clk 0:02:45]}  Nd7 {[%clk 0:02:46]} 11. Rfd1 {[%clk 0:02:36]}  a6 {[%clk 0:02:40]} 12. b4 {[%clk 0:02:28]}  b5 {[%clk 0:02:39]} 13. Qb3 {[%clk 0:02:25]}  c4 {[%clk 0:02:36]} 14. Qc2 {[%clk 0:02:26]}  e6 {[%clk 0:02:14]} 15. a4 {[%clk 0:02:25]}  Re8 {[%clk 0:02:06]} 16. Bh2 {[%clk 0:02:24]}  Qe7 {[%clk 0:02:01]} 17. e4 {[%clk 0:02:24]}  Nf6 {[%clk 0:01:59]} 18. e5 {[%clk 0:02:20]}  Ne4 {[%clk 0:01:43]} 19. Nxe4 {[%clk 0:02:16]}  dxe4 {[%clk 0:01:44]} 20. Nd2 {[%clk 0:02:16]}  e3 {[%clk 0:01:40]} 21. fxe3 {[%clk 0:02:15]}  Bh6 {[%clk 0:01:31]} 22. Bf4 {[%clk 0:02:11]}  Qh4 {[%clk 0:01:27]} 23. Rf1 {[%clk 0:02:05]}  Bxf4 {[%clk 0:01:22]} 24. Rxf4 {[%clk 0:02:04]}  Qh6 {[%clk 0:01:22]} 25. Raf1 {[%clk 0:01:51]}  Nd8 {[%clk 0:01:21]} 26. Bf3 {[%clk 0:01:47]}  Bxf3 {[%clk 0:01:13]} 27. R1xf3 {[%clk 0:01:47]}  Re7 {[%clk 0:01:09]} 28. a5 {[%clk 0:01:47]}  Nc6 {[%clk 0:01:01]} 29. Ne4 {[%clk 0:01:46]}  Rd8 {[%clk 0:00:57]} 30. Nf6+ {[%clk 0:01:46]}  Kh8 {[%clk 0:00:57]} 31. Qe4 {[%clk 0:01:46]}  Nb8 {[%clk 0:00:55]} 32. Rh4 {[%clk 0:01:45]} 1-0


[Site "https://www.chess.com"]

[Event "Titled Tuesday Blitz September 20 Late 2022"]
[White "Kavutskiy, Konstantin"]
[Black "Harvey, Marcus R"]
[WhiteFideId "2026384"]
[BlackFideId "400092"]
[WhiteElo "2338"]
[BlackElo "2485"]
[Result "0-1"]
[Round "09"]
[TimeControl "180+1"]
[Date "2022.09.20"]
[WhiteClock "0:00:01"]
[BlackClock "0:00:30"]

1. d4 {[%clk 0:03:00]}  Nf6 {[%clk 0:02:57]} 2. c4 {[%clk 0:03:01]}  e6 {[%clk 0:02:58]} 3. Nf3 {[%clk 0:03:01]}  b6 {[%clk 0:02:57]} 4. g3 {[%clk 0:03:01]}  Bb7 {[%clk 0:02:58]} 5. Bg2 {[%clk 0:03:00]}  c5 {[%clk 0:02:58]} 6. d5 {[%clk 0:02:57]}  exd5 {[%clk 0:02:59]} 7. cxd5 {[%clk 0:02:54]}  Bxd5 {[%clk 0:03:00]} 8. Nc3 {[%clk 0:02:50]}  Bc6 {[%clk 0:03:00]} 9. e4 {[%clk 0:02:30]}  d6 {[%clk 0:02:59]} 10. O-O {[%clk 0:02:28]}  Be7 {[%clk 0:02:58]} 11. Nh4 {[%clk 0:02:26]}  O-O {[%clk 0:02:42]} 12. Nf5 {[%clk 0:02:22]}  Qd7 {[%clk 0:02:31]} 13. Bf4 {[%clk 0:02:08]}  Rd8 {[%clk 0:02:30]} 14. Re1 {[%clk 0:01:55]}  Bf8 {[%clk 0:02:29]} 15. Bg5 {[%clk 0:01:52]}  Be7 {[%clk 0:02:08]} 16. Nxe7+ {[%clk 0:01:42]}  Qxe7 {[%clk 0:02:08]} 17. Nd5 {[%clk 0:01:43]}  Bxd5 {[%clk 0:02:01]} 18. exd5 {[%clk 0:01:43]}  Qf8 {[%clk 0:01:56]} 19. Bh3 {[%clk 0:01:32]}  Nbd7 {[%clk 0:01:55]} 20. Bxd7 {[%clk 0:01:32]}  Nxd7 {[%clk 0:01:48]} 21. Bxd8 {[%clk 0:01:32]}  Rxd8 {[%clk 0:01:48]} 22. Qa4 {[%clk 0:01:28]}  Ne5 {[%clk 0:01:48]} 23. Kg2 {[%clk 0:01:23]}  a5 {[%clk 0:01:35]} 24. f4 {[%clk 0:01:16]}  Ng4 {[%clk 0:01:33]} 25. h3 {[%clk 0:01:11]}  Nf6 {[%clk 0:01:32]} 26. Rad1 {[%clk 0:01:10]}  Rc8 {[%clk 0:01:25]} 27. Qb3 {[%clk 0:01:06]}  Qd8 {[%clk 0:01:22]} 28. Qc4 {[%clk 0:01:02]}  Qd7 {[%clk 0:01:17]} 29. a4 {[%clk 0:00:59]}  h5 {[%clk 0:01:14]} 30. Qc2 {[%clk 0:00:46]}  b5 {[%clk 0:01:12]} 31. axb5 {[%clk 0:00:44]}  Rb8 {[%clk 0:01:11]} 32. Re2 {[%clk 0:00:39]}  Qxb5 {[%clk 0:01:10]} 33. Rde1 {[%clk 0:00:26]}  Nxd5 {[%clk 0:01:06]} 34. Qf5 {[%clk 0:00:16]}  Nf6 {[%clk 0:01:05]} 35. g4 {[%clk 0:00:16]}  Qc6+ {[%clk 0:01:00]} 36. Kh2 {[%clk 0:00:14]}  hxg4 {[%clk 0:00:57]} 37. hxg4 {[%clk 0:00:15]}  Qf3 {[%clk 0:00:52]} 38. Rg2 {[%clk 0:00:11]}  Qd5 {[%clk 0:00:45]} 39. Qxd5 {[%clk 0:00:05]}  Nxd5 {[%clk 0:00:46]} 40. Rd2 {[%clk 0:00:03]}  Nxf4 {[%clk 0:00:44]} 41. Kg3 {[%clk 0:00:03]}  g5 {[%clk 0:00:42]} 42. Rxd6 {[%clk 0:00:03]}  Rb3+ {[%clk 0:00:41]} 43. Kf2 {[%clk 0:00:02]}  Nd3+ {[%clk 0:00:39]} 44. Rxd3 {[%clk 0:00:02]}  Rxd3 {[%clk 0:00:40]} 45. Re5 {[%clk 0:00:02]}  f6 {[%clk 0:00:31]} 46. Rxc5 {[%clk 0:00:02]}  Rd4 {[%clk 0:00:31]} 47. Kf3 {[%clk 0:00:01]}  a4 {[%clk 0:00:30]} 48. Rb5 {[%clk 0:00:01]}  Kf7 {[%clk 0:00:30]} 0-1


[Site "https://www.chess.com"]

[Event "Titled Tuesday Blitz September 20 Late 2022"]
[White "Lewtak, Damian"]
[Black "Moral Garcia, Serafin"]
[WhiteFideId "1141724"]
[BlackFideId "2201925"]
[WhiteElo "2329"]
[BlackElo "2259"]
[Result "1-0"]
[Round "09"]
[TimeControl "180+1"]
[Date "2022.09.20"]
[WhiteClock "0:00:33"]
[BlackClock "0:00:24"]

1. d4 {[%clk 0:03:00]}  Nf6 {[%clk 0:02:59]} 2. Nf3 {[%clk 0:02:59]}  g6 {[%clk 0:02:58]} 3. c4 {[%clk 0:02:59]}  Bg7 {[%clk 0:02:58]} 4. Nc3 {[%clk 0:02:59]}  d5 {[%clk 0:02:58]} 5. e3 {[%clk 0:02:59]}  O-O {[%clk 0:02:58]} 6. Be2 {[%clk 0:02:58]}  c5 {[%clk 0:02:58]} 7. dxc5 {[%clk 0:02:59]}  dxc4 {[%clk 0:02:46]} 8. O-O {[%clk 0:02:59]}  Nbd7 {[%clk 0:02:37]} 9. Qd4 {[%clk 0:02:53]}  Qa5 {[%clk 0:02:33]} 10. Qxc4 {[%clk 0:02:53]}  Qxc5 {[%clk 0:02:32]} 11. Qh4 {[%clk 0:02:52]}  Ne5 {[%clk 0:02:27]} 12. e4 {[%clk 0:02:41]}  Nxf3+ {[%clk 0:02:24]} 13. Bxf3 {[%clk 0:02:42]}  Be6 {[%clk 0:02:18]} 14. a3 {[%clk 0:02:35]}  Rfd8 {[%clk 0:02:12]} 15. Be3 {[%clk 0:02:34]}  Qc4 {[%clk 0:02:09]} 16. Rfc1 {[%clk 0:02:22]}  Qb3 {[%clk 0:01:58]} 17. Rab1 {[%clk 0:02:21]}  Nd7 {[%clk 0:01:57]} 18. Bd1 {[%clk 0:02:03]}  Qc4 {[%clk 0:01:43]} 19. Nd5 {[%clk 0:01:53]}  Qd3 {[%clk 0:01:38]} 20. Bc2 {[%clk 0:01:31]}  Qe2 {[%clk 0:01:36]} 21. Nxe7+ {[%clk 0:01:21]}  Kh8 {[%clk 0:01:35]} 22. Bg5 {[%clk 0:01:08]}  Ne5 {[%clk 0:01:31]} 23. Nf5 {[%clk 0:00:51]}  Nd3 {[%clk 0:01:03]} 24. Bxd3 {[%clk 0:00:41]}  Rxd3 {[%clk 0:00:53]} 25. Nxg7 {[%clk 0:00:40]}  Rh3 {[%clk 0:00:24]} 26. gxh3 {[%clk 0:00:33]} 1-0


[Site "https://www.chess.com"]

[Event "Titled Tuesday Blitz September 20 Late 2022"]
[White "Mihajlov, Sebastian"]
[Black "Korchmar, Vasiliy"]
[WhiteFideId "1512110"]
[BlackFideId "24131750"]
[WhiteElo "2464"]
[BlackElo "2370"]
[Result "1-0"]
[Round "09"]
[TimeControl "180+1"]
[Date "2022.09.20"]
[WhiteClock "0:00:24"]
[BlackClock "0:00:02"]

1. e4 {[%clk 0:03:00]}  c5 {[%clk 0:03:00]} 2. Nf3 {[%clk 0:03:01]}  d6 {[%clk 0:03:00]} 3. d4 {[%clk 0:03:02]}  cxd4 {[%clk 0:03:01]} 4. Nxd4 {[%clk 0:03:03]}  Nf6 {[%clk 0:03:02]} 5. Nc3 {[%clk 0:03:04]}  Nc6 {[%clk 0:03:03]} 6. Bc4 {[%clk 0:03:03]}  Qb6 {[%clk 0:03:02]} 7. Nf3 {[%clk 0:02:36]}  e6 {[%clk 0:03:01]} 8. a3 {[%clk 0:02:20]}  a6 {[%clk 0:03:01]} 9. Be3 {[%clk 0:02:15]}  Qc7 {[%clk 0:03:01]} 10. Ba2 {[%clk 0:02:13]}  Be7 {[%clk 0:02:58]} 11. Nd4 {[%clk 0:02:09]}  O-O {[%clk 0:02:52]} 12. Qe2 {[%clk 0:02:03]}  b5 {[%clk 0:02:44]} 13. f3 {[%clk 0:02:00]}  Rb8 {[%clk 0:02:39]} 14. Nxc6 {[%clk 0:01:55]}  Qxc6 {[%clk 0:02:39]} 15. O-O {[%clk 0:01:56]}  a5 {[%clk 0:02:35]} 16. Ba7 {[%clk 0:01:33]}  Ra8 {[%clk 0:02:25]} 17. Bd4 {[%clk 0:01:28]}  b4 {[%clk 0:02:17]} 18. Nb5 {[%clk 0:01:17]}  bxa3 {[%clk 0:02:06]} 19. bxa3 {[%clk 0:01:18]}  a4 {[%clk 0:01:59]} 20. c4 {[%clk 0:01:08]}  Ba6 {[%clk 0:01:54]} 21. Rab1 {[%clk 0:01:06]}  Nd7 {[%clk 0:01:45]} 22. Qb2 {[%clk 0:01:02]}  e5 {[%clk 0:01:39]} 23. Be3 {[%clk 0:01:02]}  Nc5 {[%clk 0:01:32]} 24. Rfd1 {[%clk 0:01:03]}  f5 {[%clk 0:01:19]} 25. exf5 {[%clk 0:01:02]}  Rxf5 {[%clk 0:01:20]} 26. Nc3 {[%clk 0:00:49]}  Raf8 {[%clk 0:01:10]} 27. Nd5 {[%clk 0:00:48]}  Bd8 {[%clk 0:01:08]} 28. Qc2 {[%clk 0:00:42]}  Bb7 {[%clk 0:00:44]} 29. Rb6 {[%clk 0:00:38]}  Qc8 {[%clk 0:00:33]} 30. Rxd6 {[%clk 0:00:36]}  Kh8 {[%clk 0:00:26]} 31. Rxd8 {[%clk 0:00:25]}  Rxd8 {[%clk 0:00:23]} 32. Ne7 {[%clk 0:00:25]}  Rxd1+ {[%clk 0:00:09]} 33. Qxd1 {[%clk 0:00:26]}  Qf8 {[%clk 0:00:01]} 34. Nxf5 {[%clk 0:00:26]}  Nb3 {[%clk 0:00:02]} 35. Qd6 {[%clk 0:00:24]} 1-0


[Site "https://www.chess.com"]